[Event "Titled Tuesday Blitz April 25 Late 2023"]
[White "Kraus, Tomas"]
[Black "D`Arruda, Ricardo D."]
[WhiteFideId "331708"]
[BlackFideId "100692"]
[WhiteElo "2389"]
[BlackElo "2271"]
[Result "1-0"]
[Round "03"]
[TimeControl "180+2"]
[Date "2023.04.25"]
[WhiteClock "0:00:45"]
[BlackClock "0:00:55"]

1. d4 {[%clk 0:03:00]}  Nf6 {[%clk 0:02:55]} 2. c4 {[%clk 0:03:00]}  e5 {[%clk 0:02:53]} 3. dxe5 {[%clk 0:02:58]}  Ne4 {[%clk 0:02:54]} 4. Nd2 {[%clk 0:02:47]}  Nc5 {[%clk 0:02:51]} 5. Ndf3 {[%clk 0:02:35]}  Nc6 {[%clk 0:02:50]} 6. Bf4 {[%clk 0:02:31]}  h6 {[%clk 0:02:49]} 7. e3 {[%clk 0:02:30]}  g5 {[%clk 0:02:48]} 8. Bg3 {[%clk 0:02:30]}  Bg7 {[%clk 0:02:48]} 9. Ne2 {[%clk 0:02:19]}  Qe7 {[%clk 0:02:44]} 10. Nc3 {[%clk 0:02:18]}  Nxe5 {[%clk 0:02:40]} 11. Nxe5 {[%clk 0:02:02]}  Bxe5 {[%clk 0:02:39]} 12. Nd5 {[%clk 0:02:03]}  Qd6 {[%clk 0:02:39]} 13. b4 {[%clk 0:01:31]}  Ne4 {[%clk 0:01:30]} 14. c5 {[%clk 0:01:21]}  Qe6 {[%clk 0:01:30]} 15. Nxc7+ {[%clk 0:01:11]}  Bxc7 {[%clk 0:01:29]} 16. Bxc7 {[%clk 0:01:10]}  O-O {[%clk 0:01:24]} 17. Qd4 {[%clk 0:01:08]}  Qf6 {[%clk 0:01:16]} 18. Qxf6 {[%clk 0:01:04]}  Nxf6 {[%clk 0:01:17]} 19. Bc4 {[%clk 0:00:57]}  b6 {[%clk 0:01:10]} 20. Be5 {[%clk 0:00:55]}  Kg7 {[%clk 0:01:01]} 21. Bd5 {[%clk 0:00:53]}  Ba6 {[%clk 0:00:55]} 22. Bxa8 {[%clk 0:00:51]}  Rxa8 {[%clk 0:00:56]} 23. O-O-O {[%clk 0:00:47]}  Bb5 {[%clk 0:00:55]} 24. Rd6 {[%clk 0:00:45]} 1-0


[Site "https://www.chess.com"]

[Event "Titled Tuesday Blitz April 25 Late 2023"]
[White "Chakravarthi Reddy, M"]
[Black "Fernandez, Maria Florencia"]
[WhiteFideId "25009532"]
[BlackFideId "116459"]
[WhiteElo "2201"]
[BlackElo "2120"]
[Result "0-1"]
[Round "03"]
[TimeControl "180+2"]
[Date "2023.04.25"]
[WhiteClock "0:00:04"]
[BlackClock "0:00:08"]

1. e4 {[%clk 0:03:00]}  c5 {[%clk 0:02:58]} 2. Nf3 {[%clk 0:02:59]}  d6 {[%clk 0:02:58]} 3. d4 {[%clk 0:02:59]}  cxd4 {[%clk 0:02:54]} 4. Nxd4 {[%clk 0:03:00]}  Nf6 {[%clk 0:02:54]} 5. Nc3 {[%clk 0:02:59]}  g6 {[%clk 0:02:55]} 6. f3 {[%clk 0:02:55]}  Bg7 {[%clk 0:02:54]} 7. Be3 {[%clk 0:02:56]}  O-O {[%clk 0:02:53]} 8. Qd2 {[%clk 0:02:57]}  Nc6 {[%clk 0:02:53]} 9. h4 {[%clk 0:02:53]}  d5 {[%clk 0:02:37]} 10. e5 {[%clk 0:01:33]}  Nxe5 {[%clk 0:02:29]} 11. h5 {[%clk 0:01:33]}  Nc4 {[%clk 0:02:19]} 12. Bxc4 {[%clk 0:01:30]}  dxc4 {[%clk 0:02:18]} 13. hxg6 {[%clk 0:01:30]}  fxg6 {[%clk 0:02:12]} 14. Qe2 {[%clk 0:01:18]}  Qc7 {[%clk 0:01:56]} 15. O-O-O {[%clk 0:01:16]}  a6 {[%clk 0:01:49]} 16. Rh4 {[%clk 0:01:09]}  e5 {[%clk 0:01:39]} 17. Nb3 {[%clk 0:01:07]}  cxb3 {[%clk 0:01:37]} 18. axb3 {[%clk 0:01:05]}  Be6 {[%clk 0:01:26]} 19. Rdh1 {[%clk 0:01:03]}  Rac8 {[%clk 0:01:14]} 20. g4 {[%clk 0:01:00]}  Rf7 {[%clk 0:01:07]} 21. Bf2 {[%clk 0:00:50]}  b5 {[%clk 0:00:55]} 22. Bg3 {[%clk 0:00:49]}  b4 {[%clk 0:00:46]} 23. Bxe5 {[%clk 0:00:46]}  Qc6 {[%clk 0:00:46]} 24. Ne4 {[%clk 0:00:21]}  Nxe4 {[%clk 0:00:35]} 25. Bxg7 {[%clk 0:00:21]}  Rxg7 {[%clk 0:00:33]} 26. fxe4 {[%clk 0:00:21]}  Bxb3 {[%clk 0:00:33]} 27. R1h2 {[%clk 0:00:20]}  Bc4 {[%clk 0:00:28]} 28. Qd2 {[%clk 0:00:17]}  b3 {[%clk 0:00:27]} 29. c3 {[%clk 0:00:18]}  Be6 {[%clk 0:00:25]} 30. e5 {[%clk 0:00:17]}  Qa4 {[%clk 0:00:23]} 31. Kd1 {[%clk 0:00:14]}  Bc4 {[%clk 0:00:21]} 32. Ke1 {[%clk 0:00:14]}  Qa1+ {[%clk 0:00:20]} 33. Kf2 {[%clk 0:00:14]}  Qf1+ {[%clk 0:00:20]} 34. Kg3 {[%clk 0:00:14]}  Rf8 {[%clk 0:00:18]} 35. Qe3 {[%clk 0:00:07]}  Bd5 {[%clk 0:00:14]} 36. Rf2 {[%clk 0:00:05]}  Qg1+ {[%clk 0:00:11]} 37. Kh3 {[%clk 0:00:04]}  Rxf2 {[%clk 0:00:08]} 0-1


[Site "https://www.chess.com"]

[Event "Titled Tuesday Blitz April 25 Late 2023"]
[White "Gutkin, Ilya"]
[Black "Botez, Alexandra"]
[WhiteFideId "16203470"]
[BlackFideId "2603365"]
[WhiteElo "2265"]
[BlackElo "2059"]
[Result "0-1"]
[Round "03"]
[TimeControl "180+2"]
[Date "2023.04.25"]
[WhiteClock "0:00:08"]
[BlackClock "0:00:07"]

1. Nf3 {[%clk 0:03:00]}  Nf6 {[%clk 0:02:59]} 2. g3 {[%clk 0:02:59]}  g6 {[%clk 0:02:59]} 3. b3 {[%clk 0:03:00]}  d5 {[%clk 0:02:59]} 4. Bb2 {[%clk 0:03:00]}  Bg7 {[%clk 0:02:59]} 5. c4 {[%clk 0:03:00]}  c6 {[%clk 0:02:59]} 6. Bg2 {[%clk 0:03:00]}  O-O {[%clk 0:02:59]} 7. O-O {[%clk 0:03:01]}  h6 {[%clk 0:02:56]} 8. d3 {[%clk 0:03:00]}  Be6 {[%clk 0:02:55]} 9. Nbd2 {[%clk 0:02:59]}  Qd7 {[%clk 0:02:54]} 10. Re1 {[%clk 0:02:50]}  Na6 {[%clk 0:02:50]} 11. Qc2 {[%clk 0:02:48]}  Rac8 {[%clk 0:02:49]} 12. a3 {[%clk 0:02:47]}  Bh3 {[%clk 0:02:34]} 13. Bh1 {[%clk 0:02:46]}  Nh5 {[%clk 0:02:04]} 14. Rad1 {[%clk 0:02:43]}  Qc7 {[%clk 0:02:02]} 15. Bxg7 {[%clk 0:02:37]}  Nxg7 {[%clk 0:01:58]} 16. e4 {[%clk 0:02:33]}  e6 {[%clk 0:01:51]} 17. Qb2 {[%clk 0:02:29]}  Bg4 {[%clk 0:01:51]} 18. Bg2 {[%clk 0:02:27]}  Nc5 {[%clk 0:01:39]} 19. Qc2 {[%clk 0:02:11]}  Rfd8 {[%clk 0:01:23]} 20. b4 {[%clk 0:01:20]}  Nd7 {[%clk 0:01:12]} 21. Rc1 {[%clk 0:01:13]}  Bxf3 {[%clk 0:01:03]} 22. Bxf3 {[%clk 0:01:12]}  d4 {[%clk 0:00:59]} 23. c5 {[%clk 0:01:10]}  Ne5 {[%clk 0:00:59]} 24. Be2 {[%clk 0:01:02]}  g5 {[%clk 0:00:41]} 25. Kh1 {[%clk 0:00:59]}  Kh8 {[%clk 0:00:41]} 26. Rg1 {[%clk 0:00:53]}  g4 {[%clk 0:00:36]} 27. Rgf1 {[%clk 0:00:48]}  Rf8 {[%clk 0:00:20]} 28. Qb2 {[%clk 0:00:40]}  Rcd8 {[%clk 0:00:20]} 29. Nb3 {[%clk 0:00:36]}  Qd7 {[%clk 0:00:20]} 30. Rcd1 {[%clk 0:00:32]}  f5 {[%clk 0:00:19]} 31. Nd2 {[%clk 0:00:30]}  h5 {[%clk 0:00:15]} 32. f4 {[%clk 0:00:29]}  gxf3 {[%clk 0:00:14]} 33. Nxf3 {[%clk 0:00:27]}  Ng4 {[%clk 0:00:15]} 34. Rde1 {[%clk 0:00:16]}  Ne3 {[%clk 0:00:14]} 35. Rg1 {[%clk 0:00:15]}  fxe4 {[%clk 0:00:14]} 36. Nh4 {[%clk 0:00:14]}  Rf6 {[%clk 0:00:10]} 37. dxe4 {[%clk 0:00:12]}  e5 {[%clk 0:00:09]} 38. Bd3 {[%clk 0:00:12]}  Ng4 {[%clk 0:00:08]} 39. Re2 {[%clk 0:00:12]}  Rdf8 {[%clk 0:00:07]} 40. h3 {[%clk 0:00:07]}  Nf2+ {[%clk 0:00:07]} 41. Kg2 {[%clk 0:00:08]}  Qxh3# {[%clk 0:00:07]} 0-1


[Site "https://www.chess.com"]

[Event "Titled Tuesday Blitz April 25 Late 2023"]
[White "Simonovic, Miroslav"]
[Black "Figorito, Nick"]
[WhiteFideId "919152"]
[BlackFideId "30923689"]
[WhiteElo "2042"]
[BlackElo "2036"]
[Result "1-0"]
[Round "03"]
[TimeControl "180+2"]
[Date "2023.04.25"]
[WhiteClock "0:00:45"]
[BlackClock "0:00:07"]

1. d4 {[%clk 0:03:00]}  Nf6 {[%clk 0:02:58]} 2. Bg5 {[%clk 0:03:01]}  d5 {[%clk 0:02:55]} 3. Bxf6 {[%clk 0:03:01]}  exf6 {[%clk 0:02:55]} 4. e3 {[%clk 0:03:02]}  Bd6 {[%clk 0:02:56]} 5. c4 {[%clk 0:03:02]}  c6 {[%clk 0:02:56]} 6. cxd5 {[%clk 0:03:02]}  cxd5 {[%clk 0:02:57]} 7. Nc3 {[%clk 0:03:02]}  O-O {[%clk 0:02:54]} 8. a3 {[%clk 0:03:01]}  Be6 {[%clk 0:02:53]} 9. g3 {[%clk 0:03:02]}  Nd7 {[%clk 0:02:40]} 10. Bg2 {[%clk 0:03:01]}  Nb6 {[%clk 0:02:41]} 11. Nge2 {[%clk 0:03:02]}  Nc4 {[%clk 0:02:39]} 12. b4 {[%clk 0:03:01]}  a5 {[%clk 0:02:36]} 13. Qb3 {[%clk 0:02:50]}  axb4 {[%clk 0:02:33]} 14. Bxd5 {[%clk 0:02:35]}  Bxd5 {[%clk 0:01:55]} 15. Nxd5 {[%clk 0:02:36]}  Nxa3 {[%clk 0:01:50]} 16. O-O {[%clk 0:02:34]}  f5 {[%clk 0:01:17]} 17. Nxb4 {[%clk 0:02:32]}  Bxb4 {[%clk 0:01:16]} 18. Qxb4 {[%clk 0:02:31]}  Nc2 {[%clk 0:01:15]} 19. Rxa8 {[%clk 0:02:31]}  Nxb4 {[%clk 0:01:14]} 20. Rxd8 {[%clk 0:02:31]}  Rxd8 {[%clk 0:01:15]} 21. Rb1 {[%clk 0:02:30]}  Nc6 {[%clk 0:01:04]} 22. Rxb7 {[%clk 0:02:31]}  g6 {[%clk 0:01:02]} 23. Nf4 {[%clk 0:02:28]}  Kf8 {[%clk 0:00:58]} 24. h4 {[%clk 0:02:26]}  Ne7 {[%clk 0:00:57]} 25. Nd3 {[%clk 0:02:18]}  Nc8 {[%clk 0:00:48]} 26. Ne5 {[%clk 0:02:12]}  Nd6 {[%clk 0:00:49]} 27. Ra7 {[%clk 0:01:54]}  h5 {[%clk 0:00:47]} 28. Kg2 {[%clk 0:01:53]}  Kg7 {[%clk 0:00:47]} 29. Rd7 {[%clk 0:01:44]}  Rxd7 {[%clk 0:00:46]} 30. Nxd7 {[%clk 0:01:45]}  f6 {[%clk 0:00:45]} 31. f3 {[%clk 0:01:43]}  Kf7 {[%clk 0:00:44]} 32. Kf2 {[%clk 0:01:43]}  Ke6 {[%clk 0:00:44]} 33. Nf8+ {[%clk 0:01:40]}  Kf7 {[%clk 0:00:44]} 34. Nd7 {[%clk 0:01:40]}  Ke6 {[%clk 0:00:45]} 35. Nc5+ {[%clk 0:01:41]}  Kf7 {[%clk 0:00:44]} 36. Ke2 {[%clk 0:01:41]}  Nc4 {[%clk 0:00:41]} 37. Kd3 {[%clk 0:01:41]}  Nb2+ {[%clk 0:00:42]} 38. Kc2 {[%clk 0:01:40]}  Nc4 {[%clk 0:00:42]} 39. Kd3 {[%clk 0:01:38]}  Nb2+ {[%clk 0:00:42]} 40. Ke2 {[%clk 0:01:38]}  Nc4 {[%clk 0:00:42]} 41. f4 {[%clk 0:01:29]}  Nd6 {[%clk 0:00:40]} 42. Kd3 {[%clk 0:01:26]}  Ke7 {[%clk 0:00:40]} 43. e4 {[%clk 0:01:26]}  fxe4+ {[%clk 0:00:39]} 44. Nxe4 {[%clk 0:01:27]}  Nf5 {[%clk 0:00:36]} 45. Kc4 {[%clk 0:01:23]}  Ke6 {[%clk 0:00:25]} 46. d5+ {[%clk 0:01:20]}  Ke7 {[%clk 0:00:25]} 47. Kc5 {[%clk 0:01:20]}  Kd8 {[%clk 0:00:20]} 48. d6 {[%clk 0:01:07]}  Ke8 {[%clk 0:00:12]} 49. Nxf6+ {[%clk 0:01:07]}  Kf7 {[%clk 0:00:11]} 50. Ne4 {[%clk 0:01:05]}  Ke6 {[%clk 0:00:10]} 51. Kc6 {[%clk 0:01:04]}  Nd4+ {[%clk 0:00:11]} 52. Kc7 {[%clk 0:01:04]}  Nb5+ {[%clk 0:00:11]} 53. Kd8 {[%clk 0:00:59]}  Nxd6 {[%clk 0:00:11]} 54. Nxd6 {[%clk 0:01:00]}  Kxd6 {[%clk 0:00:12]} 55. Ke8 {[%clk 0:01:00]}  Ke6 {[%clk 0:00:13]} 56. Kf8 {[%clk 0:01:00]}  Kf6 {[%clk 0:00:13]} 57. Kg8 {[%clk 0:00:59]}  Ke6 {[%clk 0:00:05]} 58. Kg7 {[%clk 0:00:56]}  Kf5 {[%clk 0:00:04]} 59. Kf7 {[%clk 0:00:57]}  Kg4 {[%clk 0:00:03]} 60. Kxg6 {[%clk 0:00:57]}  Kxg3 {[%clk 0:00:03]} 61. f5 {[%clk 0:00:47]}  Kxh4 {[%clk 0:00:03]} 62. f6 {[%clk 0:00:48]}  Kg4 {[%clk 0:00:04]} 63. f7 {[%clk 0:00:49]}  h4 {[%clk 0:00:05]} 64. f8=Q {[%clk 0:00:49]}  h3 {[%clk 0:00:06]} 65. Qf1 {[%clk 0:00:48]}  Kg3 {[%clk 0:00:06]} 66. Qh1 {[%clk 0:00:49]}  h2 {[%clk 0:00:06]} 67. Kh5 {[%clk 0:00:49]}  Kh3 {[%clk 0:00:07]} 68. Kg5 {[%clk 0:00:46]}  Kg3 {[%clk 0:00:07]} 69. Kf5 {[%clk 0:00:45]}  Kh3 {[%clk 0:00:07]} 70. Kf4 {[%clk 0:00:45]}  Kh4 {[%clk 0:00:07]} 71. Qxh2# {[%clk 0:00:45]} 1-0


[Site "https://www.chess.com"]

[Event "Titled Tuesday Blitz April 25 Late 2023"]
[White "Mickiewicz, Piotr"]
[Black "Broca Jimenez, Fernando"]
[WhiteFideId "1114891"]
[BlackFideId "5104742"]
[WhiteElo "2246"]
[BlackElo "2062"]
[Result "1-0"]
[Round "03"]
[TimeControl "180+2"]
[Date "2023.04.25"]
[WhiteClock "0:00:28"]
[BlackClock "0:00:05"]

1. Nf3 {[%clk 0:03:00]}  c5 {[%clk 0:02:57]} 2. e3 {[%clk 0:02:59]}  g6 {[%clk 0:02:57]} 3. Be2 {[%clk 0:02:41]}  Bg7 {[%clk 0:02:54]} 4. O-O {[%clk 0:02:42]}  Nf6 {[%clk 0:02:54]} 5. b3 {[%clk 0:02:38]}  O-O {[%clk 0:02:49]} 6. Bb2 {[%clk 0:02:39]}  Nc6 {[%clk 0:02:49]} 7. c4 {[%clk 0:02:38]}  d5 {[%clk 0:02:40]} 8. cxd5 {[%clk 0:02:33]}  Nxd5 {[%clk 0:02:27]} 9. Bxg7 {[%clk 0:02:34]}  Kxg7 {[%clk 0:02:27]} 10. Qc1 {[%clk 0:02:34]}  b6 {[%clk 0:02:26]} 11. Qb2+ {[%clk 0:02:35]}  Nf6 {[%clk 0:02:24]} 12. a3 {[%clk 0:02:35]}  Bb7 {[%clk 0:02:19]} 13. b4 {[%clk 0:02:33]}  cxb4 {[%clk 0:02:08]} 14. axb4 {[%clk 0:02:34]}  Rc8 {[%clk 0:02:07]} 15. b5 {[%clk 0:02:34]}  Na5 {[%clk 0:02:08]} 16. Ne5 {[%clk 0:02:26]}  Qd5 {[%clk 0:01:58]} 17. Bf3 {[%clk 0:02:23]}  Qe6 {[%clk 0:01:50]} 18. Bxb7 {[%clk 0:02:21]}  Nxb7 {[%clk 0:01:49]} 19. Rxa7 {[%clk 0:02:18]}  Nd6 {[%clk 0:01:26]} 20. d4 {[%clk 0:02:09]}  Kh8 {[%clk 0:00:55]} 21. Nc3 {[%clk 0:01:56]}  Nc4 {[%clk 0:00:53]} 22. Nxc4 {[%clk 0:01:54]}  Rxc4 {[%clk 0:00:54]} 23. Na2 {[%clk 0:01:13]}  Rfc8 {[%clk 0:00:48]} 24. Nb4 {[%clk 0:01:14]}  R4c7 {[%clk 0:00:24]} 25. Ra6 {[%clk 0:01:08]}  Nd5 {[%clk 0:00:18]} 26. Nc6 {[%clk 0:01:08]}  Kg8 {[%clk 0:00:15]} 27. h3 {[%clk 0:00:55]}  Qd6 {[%clk 0:00:14]} 28. e4 {[%clk 0:00:53]}  Nf4 {[%clk 0:00:14]} 29. d5 {[%clk 0:00:48]}  e6 {[%clk 0:00:13]} 30. Qf6 {[%clk 0:00:46]}  Rd7 {[%clk 0:00:08]} 31. dxe6 {[%clk 0:00:39]}  Nxe6 {[%clk 0:00:07]} 32. Rxb6 {[%clk 0:00:34]}  Nc5 {[%clk 0:00:05]} 33. Qxd6 {[%clk 0:00:32]}  Rxd6 {[%clk 0:00:05]} 34. Ne7+ {[%clk 0:00:33]}  Kg7 {[%clk 0:00:05]} 35. Nxc8 {[%clk 0:00:34]}  Rd2 {[%clk 0:00:04]} 36. f3 {[%clk 0:00:29]}  Nxe4 {[%clk 0:00:05]} 37. fxe4 {[%clk 0:00:28]} 1-0


[Site "https://www.chess.com"]

[Event "Titled Tuesday Blitz April 25 Late 2023"]
[White "Papp, Petra"]
[Black "Holtel, Jasper"]
[WhiteFideId "739049"]
[BlackFideId "12956376"]
[WhiteElo "2259"]
[BlackElo "2372"]
[Result "1-0"]
[Round "03"]
[TimeControl "180+2"]
[Date "2023.04.25"]
[WhiteClock "0:00:03"]
[BlackClock "0:00:12"]

1. e4 {[%clk 0:02:34]}  e6 {[%clk 0:02:59]} 2. d4 {[%clk 0:02:33]}  d5 {[%clk 0:03:00]} 3. Nc3 {[%clk 0:02:33]}  Nf6 {[%clk 0:03:00]} 4. e5 {[%clk 0:02:33]}  Nfd7 {[%clk 0:03:00]} 5. f4 {[%clk 0:02:25]}  c5 {[%clk 0:03:00]} 6. Nf3 {[%clk 0:02:24]}  Nc6 {[%clk 0:03:00]} 7. Be3 {[%clk 0:02:23]}  cxd4 {[%clk 0:03:01]} 8. Nxd4 {[%clk 0:02:22]}  Qb6 {[%clk 0:03:01]} 9. Qd2 {[%clk 0:02:20]}  Qxb2 {[%clk 0:03:01]} 10. Rb1 {[%clk 0:02:20]}  Qa3 {[%clk 0:03:01]} 11. Bb5 {[%clk 0:02:21]}  Nxd4 {[%clk 0:03:00]} 12. Bxd4 {[%clk 0:02:21]}  a6 {[%clk 0:03:00]} 13. Rb3 {[%clk 0:02:18]}  Qe7 {[%clk 0:03:00]} 14. Bxd7+ {[%clk 0:02:14]}  Bxd7 {[%clk 0:03:00]} 15. Rxb7 {[%clk 0:02:13]}  Rc8 {[%clk 0:03:00]} 16. O-O {[%clk 0:02:11]}  Qd8 {[%clk 0:02:56]} 17. f5 {[%clk 0:02:01]}  exf5 {[%clk 0:02:26]} 18. Bb6 {[%clk 0:01:26]}  Bc5+ {[%clk 0:02:15]} 19. Bxc5 {[%clk 0:01:22]}  Rxc5 {[%clk 0:02:16]} 20. Qd4 {[%clk 0:01:11]}  Qc8 {[%clk 0:00:46]} 21. Rxd7 {[%clk 0:00:35]}  Rxc3 {[%clk 0:00:40]} 22. e6 {[%clk 0:00:30]}  O-O {[%clk 0:00:35]} 23. Rxf7 {[%clk 0:00:15]}  Qc5 {[%clk 0:00:31]} 24. Qxc5 {[%clk 0:00:06]}  Rxc5 {[%clk 0:00:31]} 25. R1xf5 {[%clk 0:00:05]}  Rxf7 {[%clk 0:00:23]} 26. Rxf7 {[%clk 0:00:05]}  Rxc2 {[%clk 0:00:14]} 27. Ra7 {[%clk 0:00:03]}  Re2 {[%clk 0:00:12]} 28. Ra8# {[%clk 0:00:03]} 1-0


[Site "https://www.chess.com"]

[Event "Titled Tuesday Blitz April 25 Late 2023"]
[White "Dahlgren, James Allen"]
[Black "Urbina Perez, Juan Antonio"]
[WhiteFideId "22256873"]
[BlackFideId "2217368"]
[WhiteElo "1824"]
[BlackElo "2197"]
[Result "1-0"]
[Round "03"]
[TimeControl "180+2"]
[Date "2023.04.25"]
[WhiteClock "0:00:16"]
[BlackClock "0:00:16"]

1. e4 {[%clk 0:03:00]}  c5 {[%clk 0:02:59]} 2. Nc3 {[%clk 0:03:01]}  Nc6 {[%clk 0:02:58]} 3. f4 {[%clk 0:02:58]}  g6 {[%clk 0:02:57]} 4. Nf3 {[%clk 0:02:58]}  Bg7 {[%clk 0:02:58]} 5. Bc4 {[%clk 0:02:58]}  e6 {[%clk 0:02:57]} 6. d3 {[%clk 0:02:58]}  Nge7 {[%clk 0:02:57]} 7. O-O {[%clk 0:02:58]}  O-O {[%clk 0:02:57]} 8. a4 {[%clk 0:02:58]}  d5 {[%clk 0:02:56]} 9. Ba2 {[%clk 0:02:57]}  dxe4 {[%clk 0:02:54]} 10. Nxe4 {[%clk 0:02:57]}  b6 {[%clk 0:02:54]} 11. Be3 {[%clk 0:02:53]}  Bb7 {[%clk 0:02:51]} 12. c3 {[%clk 0:02:52]}  Qd7 {[%clk 0:02:48]} 13. Qe2 {[%clk 0:02:52]}  Rad8 {[%clk 0:02:48]} 14. Rad1 {[%clk 0:02:51]}  Qc7 {[%clk 0:02:48]} 15. g4 {[%clk 0:02:45]}  Kh8 {[%clk 0:02:44]} 16. Nfg5 {[%clk 0:02:32]}  Qc8 {[%clk 0:02:35]} 17. Qf2 {[%clk 0:02:22]}  Nd5 {[%clk 0:02:21]} 18. Bc1 {[%clk 0:02:13]}  h6 {[%clk 0:02:13]} 19. Qh4 {[%clk 0:02:09]}  Kg8 {[%clk 0:02:12]} 20. Nf3 {[%clk 0:02:01]}  Qc7 {[%clk 0:02:10]} 21. f5 {[%clk 0:01:57]}  exf5 {[%clk 0:02:03]} 22. gxf5 {[%clk 0:01:56]}  Ne5 {[%clk 0:01:56]} 23. Bxd5 {[%clk 0:01:48]}  Bxd5 {[%clk 0:01:53]} 24. f6 {[%clk 0:01:45]}  Nxf3+ {[%clk 0:01:44]} 25. Rxf3 {[%clk 0:01:42]}  Bxe4 {[%clk 0:01:40]} 26. Qxe4 {[%clk 0:01:40]}  Rfe8 {[%clk 0:01:35]} 27. Qh4 {[%clk 0:01:22]}  g5 {[%clk 0:01:21]} 28. Bxg5 {[%clk 0:01:17]}  Qc6 {[%clk 0:01:16]} 29. Rg3 {[%clk 0:01:05]}  Re6 {[%clk 0:00:57]} 30. Bxh6 {[%clk 0:00:57]}  Rxf6 {[%clk 0:00:57]} 31. Rxg7+ {[%clk 0:00:56]}  Kf8 {[%clk 0:00:56]} 32. Rg6+ {[%clk 0:00:37]}  Ke8 {[%clk 0:00:40]} 33. Rxf6 {[%clk 0:00:31]}  Qd5 {[%clk 0:00:38]} 34. Re1+ {[%clk 0:00:29]}  Kd7 {[%clk 0:00:37]} 35. Qg4+ {[%clk 0:00:25]}  Kc7 {[%clk 0:00:36]} 36. Bf4+ {[%clk 0:00:25]}  Kb7 {[%clk 0:00:35]} 37. Re7+ {[%clk 0:00:25]}  Ka6 {[%clk 0:00:33]} 38. Bc7 {[%clk 0:00:20]}  Rh8 {[%clk 0:00:24]} 39. Qc4+ {[%clk 0:00:18]}  Qxc4 {[%clk 0:00:24]} 40. dxc4 {[%clk 0:00:19]}  Rg8+ {[%clk 0:00:24]} 41. Bg3 {[%clk 0:00:18]}  Rg4 {[%clk 0:00:24]} 42. b3 {[%clk 0:00:17]}  Rg8 {[%clk 0:00:17]} 43. Rfxf7 {[%clk 0:00:17]}  Ra8 {[%clk 0:00:18]} 44. Bb8 {[%clk 0:00:16]}  Ka5 {[%clk 0:00:17]} 45. Rxa7+ {[%clk 0:00:15]}  Rxa7 {[%clk 0:00:16]} 46. Rxa7# {[%clk 0:00:16]} 1-0


[Site "https://www.chess.com"]

[Event "Titled Tuesday Blitz April 25 Late 2023"]
[White "yoriiiis"]
[Black "Skaric, Djuro"]
[BlackFideId "934569"]
[WhiteElo "2127"]
[BlackElo "2282"]
[Result "1/2-1/2"]
[Round "03"]
[TimeControl "180+2"]
[Date "2023.04.25"]
[WhiteClock "0:00:13"]
[BlackClock "0:00:13"]

1. e4 {[%clk 0:02:57]}  d6 {[%clk 0:03:00]} 2. d4 {[%clk 0:02:57]}  g6 {[%clk 0:03:01]} 3. c3 {[%clk 0:02:56]}  Bg7 {[%clk 0:03:01]} 4. Nf3 {[%clk 0:02:57]}  Nf6 {[%clk 0:03:02]} 5. Bd3 {[%clk 0:02:57]}  O-O {[%clk 0:03:02]} 6. O-O {[%clk 0:02:57]}  Nc6 {[%clk 0:03:03]} 7. h3 {[%clk 0:02:57]}  e5 {[%clk 0:03:03]} 8. Be3 {[%clk 0:02:54]}  h6 {[%clk 0:03:03]} 9. Nbd2 {[%clk 0:02:54]}  Nd7 {[%clk 0:03:03]} 10. a3 {[%clk 0:02:50]}  f5 {[%clk 0:03:03]} 11. Qb3+ {[%clk 0:02:48]}  Kh7 {[%clk 0:03:02]} 12. exf5 {[%clk 0:02:43]}  gxf5 {[%clk 0:03:01]} 13. Nh2 {[%clk 0:02:04]}  e4 {[%clk 0:02:56]} 14. Bc2 {[%clk 0:01:59]}  Nb6 {[%clk 0:02:55]} 15. d5 {[%clk 0:01:42]}  Ne7 {[%clk 0:02:36]} 16. Bxb6 {[%clk 0:01:26]}  axb6 {[%clk 0:02:34]} 17. f3 {[%clk 0:01:25]}  e3 {[%clk 0:02:34]} 18. Nc4 {[%clk 0:01:23]}  Nxd5 {[%clk 0:02:32]} 19. Rae1 {[%clk 0:01:18]}  Re8 {[%clk 0:02:12]} 20. Ng4 {[%clk 0:01:15]}  Qg5 {[%clk 0:01:59]} 21. Nxd6 {[%clk 0:00:57]}  cxd6 {[%clk 0:01:54]} 22. Qxd5 {[%clk 0:00:56]}  Kh8 {[%clk 0:01:54]} 23. f4 {[%clk 0:00:46]}  Qg6 {[%clk 0:01:41]} 24. Nxe3 {[%clk 0:00:44]}  Rf8 {[%clk 0:01:39]} 25. Kh2 {[%clk 0:00:40]}  h5 {[%clk 0:01:36]} 26. Nc4 {[%clk 0:00:39]}  Rf6 {[%clk 0:01:32]} 27. Nxb6 {[%clk 0:00:38]}  Rb8 {[%clk 0:01:28]} 28. Nxc8 {[%clk 0:00:38]}  Rxc8 {[%clk 0:01:28]} 29. Qxb7 {[%clk 0:00:39]}  Rg8 {[%clk 0:01:27]} 30. Re7 {[%clk 0:00:36]}  Bh6 {[%clk 0:01:26]} 31. Rf2 {[%clk 0:00:33]}  h4 {[%clk 0:01:20]} 32. Qd5 {[%clk 0:00:28]}  Rgf8 {[%clk 0:01:14]} 33. Qf3 {[%clk 0:00:26]}  Rg8 {[%clk 0:01:08]} 34. a4 {[%clk 0:00:25]}  Qg3+ {[%clk 0:01:07]} 35. Kh1 {[%clk 0:00:22]}  Qxf3 {[%clk 0:00:56]} 36. Rxf3 {[%clk 0:00:23]}  Rb8 {[%clk 0:00:56]} 37. b4 {[%clk 0:00:23]}  Bg7 {[%clk 0:00:52]} 38. a5 {[%clk 0:00:23]}  d5 {[%clk 0:00:50]} 39. Bd3 {[%clk 0:00:21]}  Rc6 {[%clk 0:00:46]} 40. a6 {[%clk 0:00:20]}  Rxc3 {[%clk 0:00:37]} 41. a7 {[%clk 0:00:20]}  Rf8 {[%clk 0:00:27]} 42. Rb7 {[%clk 0:00:19]}  Rc1+ {[%clk 0:00:26]} 43. Kh2 {[%clk 0:00:19]}  Bd4 {[%clk 0:00:25]} 44. g3 {[%clk 0:00:18]}  Ra1 {[%clk 0:00:20]} 45. Rb8 {[%clk 0:00:18]}  Kg7 {[%clk 0:00:20]} 46. Rxf8 {[%clk 0:00:18]}  Kxf8 {[%clk 0:00:20]} 47. Bxf5 {[%clk 0:00:16]}  Rxa7 {[%clk 0:00:19]} 48. g4 {[%clk 0:00:16]}  Ra2+ {[%clk 0:00:18]} 49. Kh1 {[%clk 0:00:15]}  Rb2 {[%clk 0:00:18]} 50. g5 {[%clk 0:00:13]}  Bg7 {[%clk 0:00:18]} 51. Be6 {[%clk 0:00:13]}  d4 {[%clk 0:00:17]} 52. f5 {[%clk 0:00:13]}  Rxb4 {[%clk 0:00:15]} 53. f6 {[%clk 0:00:13]}  Rb5 {[%clk 0:00:15]} 54. fxg7+ {[%clk 0:00:13]}  Kxg7 {[%clk 0:00:15]} 55. Rf7+ {[%clk 0:00:13]}  Kg6 {[%clk 0:00:15]} 56. Rd7 {[%clk 0:00:13]}  Rb4 {[%clk 0:00:16]} 57. Bg4 {[%clk 0:00:11]}  Kxg5 {[%clk 0:00:16]} 58. Rg7+ {[%clk 0:00:11]}  Kf4 {[%clk 0:00:16]} 59. Kg2 {[%clk 0:00:12]}  Rb2+ {[%clk 0:00:16]} 60. Kf1 {[%clk 0:00:12]}  d3 {[%clk 0:00:16]} 61. Rd7 {[%clk 0:00:12]}  Ke3 {[%clk 0:00:16]} 62. Ke1 {[%clk 0:00:12]}  Rg2 {[%clk 0:00:13]} 63. Kf1 {[%clk 0:00:12]}  Rc2 {[%clk 0:00:13]} 64. Re7+ {[%clk 0:00:12]}  Kf4 {[%clk 0:00:12]} 65. Rf7+ {[%clk 0:00:13]}  Ke3 {[%clk 0:00:12]} 66. Re7+ {[%clk 0:00:13]}  Kd4 {[%clk 0:00:12]} 67. Rd7+ {[%clk 0:00:12]}  Ke3 {[%clk 0:00:13]} 68. Re7+ {[%clk 0:00:13]} 1/2-1/2


[Site "https://www.chess.com"]